fUST/lending_fUST_20250606
["ID","MTS","AMOUNT","RATE_DAILY","PERIOD"]
[364690073,1749208245127,-753.02,0.00021917,2]
[364690074,1749208245136,-753.02,0.00021917,2]
[364690075,1749208245146,-440.0,0.00021917,2]
[364690076,1749208245155,-753.02,0.00021917,2]
[364690077,1749208245164,-440.0,0.00021917,2]
[364690078,1749208245173,-440.0,0.00021917,2]
[364690079,1749208245183,-753.02,0.00021917,2]
[364690080,1749208245192,-753.02,0.00021917,2]
[364690081,1749208245202,-440.0,0.00021917,2]
[364690082,1749208245211,-753.02,0.00021917,2]
[364690083,1749208245220,-753.14681875,0.00021917,2]
[364690084,1749208245231,-440.0,0.00021917,2]
[364690085,1749208245240,-432.48701648,0.00021917,2]
[364690086,1749208245250,-1192.64,0.00021917,2]
[364690087,1749208245260,-1070.68,0.00021917,2]
[364690088,1749208245270,-440.0,0.00021917,2]
[364690089,1749208245280,-1944.33,0.00021917,2]
[364690090,1749208245289,-432.75659421,0.00021917,2]
[364690091,1749208245298,-440.0,0.00021917,2]
[364690092,1749208245307,-442.70083785,0.00021917,2]
[364690093,1749208245318,-402.86698581,0.00021917,2]
[364690094,1749208245328,-500.0,0.00021917,2]
[364690095,1749208245339,-861.46,0.00021917,2]
[364690096,1749208245350,-440.0,0.00021917,2]
[364690097,1749208245360,-404.15921709,0.00021917,2]
[364690098,1749208245370,-440.0,0.00021917,2]
[364690099,1749208245379,-440.0,0.00021917,2]
[364690100,1749208245390,-440.0,0.00021917,2]
[364690101,1749208245400,-440.0,0.00021917,2]
[364690102,1749208245410,-229.48733796,0.00021917,2]
[364690103,1749208245420,-440.0,0.00021917,2]
[364690104,1749208245430,-420.0,0.00021917,2]
[364690105,1749208245444,-550.46520693,0.00021917,2]
[364690106,1749208245453,-440.0,0.00021917,2]
[364690107,1749208245462,-440.0,0.00021917,2]
[364690108,1749208245472,-430.0,0.00021917,2]
[364690109,1749208245482,-440.0,0.00021917,2]
[364690110,1749208245491,-440.0,0.00021917,2]
[364690111,1749208245500,-440.0,0.00021917,2]
[364690112,1749208245511,-440.0,0.00021917,2]
[364690113,1749208245521,-608.5,0.00021917,2]
[364690114,1749208245531,-1769.86,0.00021917,2]
[364690115,1749208245540,-440.0,0.00021917,2]
[364690117,1749208245550,-1639.72,0.00021917,2]
[364690118,1749208245559,-440.0,0.00021917,2]
[364690119,1749208245569,-440.0,0.00021917,2]
[364690120,1749208245578,-440.0,0.00021917,2]
[364690121,1749208245588,-432.34618766,0.00021917,2]
[364690122,1749208245597,-431.18877843,0.00021917,2]
[364690123,1749208245606,-151.0,0.00021917,2]
[364690124,1749208245616,-151.0,0.00021917,2]
[364690125,1749208245627,-440.0,0.00021917,2]
[364690127,1749208245636,-151.0,0.00021917,2]
[364690129,1749208245647,-151.0,0.00021917,2]
[364690131,1749208245733,-151.0,0.00021917,2]
[364690132,1749208245744,-440.0,0.00021917,2]
[364690133,1749208245754,-440.0,0.00021917,2]
[364690134,1749208245764,-206.774936,0.00021917,2]
[364690135,1749208245773,-440.0,0.00021917,2]
[364690136,1749208245783,-440.0,0.00021917,2]
[364690137,1749208245792,-440.0,0.00021917,2]
[364690138,1749208245802,-524.53,0.00021917,2]
[364690139,1749208245811,-440.0,0.00021917,2]
[364690140,1749208245821,-440.0,0.00021917,2]
[364690142,1749208245831,-420.0,0.00021917,2]
[364690144,1749208245840,-440.0,0.00021917,2]
[364690145,1749208245849,-440.0,0.00021917,2]
[364690146,1749208245858,-440.0,0.00021917,2]
[364690147,1749208245867,-440.0,0.00021917,2]
[364690148,1749208245877,-440.0,0.00021917,2]
[364690149,1749208245886,-440.0,0.00021917,2]
[364690150,1749208245895,-440.0,0.00021917,2]
[364690151,1749208245904,-440.0,0.00021917,2]
[364690152,1749208245913,-498.2,0.00021917,2]
[364690153,1749208245922,-151.0,0.00021917,2]
[364690154,1749208245931,-151.0,0.00021917,2]
[364690155,1749208245940,-151.0,0.00021917,2]
[364690156,1749208245949,-440.0,0.00021917,2]
[364690157,1749208245958,-151.0,0.00021917,2]
[364690158,1749208245968,-432.7636332,0.00021917,2]
[364690159,1749208245977,-497.92946374,0.00021917,2]
[364690160,1749208245986,-1771.61,0.00021917,2]
[364690161,1749208245995,-440.0,0.00021917,2]
[364690162,1749208246004,-1057.09,0.00021917,2]
[364690163,1749208246014,-440.0,0.00021917,2]
[364690164,1749208246023,-565.65780778,0.00021917,2]
[364690165,1749208246032,-440.0,0.00021917,2]
[364690166,1749208246041,-440.0,0.00021917,2]
[364690167,1749208246053,-440.0,0.00021917,2]
[364690168,1749208246063,-2442.36,0.00021917,2]
[364690169,1749208246072,-440.0,0.00021917,2]
[364690170,1749208246081,-486.94,0.00021917,2]
[364690171,1749208246090,-440.0,0.00021917,2]
[364690172,1749208246100,-433.91234916,0.00021917,2]
[364690173,1749208246110,-440.0,0.00021917,2]
[364690174,1749208246120,-440.0,0.00021917,2]
[364690175,1749208246130,-555.2651952,0.00021917,2]
[364690176,1749208246140,-440.0,0.00021917,2]
[364690177,1749208246150,-271.08527578,0.00021917,2]
[364690178,1749208246159,-440.0,0.00021917,2]
[364690179,1749208246169,-440.0,0.00021917,2]
[364690180,1749208246179,-470.12,0.00021917,2]
[364690181,1749208246190,-440.0,0.00021917,2]
[364690182,1749208246200,-505.38207033,0.00021917,2]
[364690183,1749208246210,-818.92,0.00021917,2]
[364690184,1749208246220,-440.0,0.00021917,2]
[364690185,1749208246229,-440.0,0.00021917,2]
[364690186,1749208246239,-440.0,0.00021917,2]
[364690187,1749208246247,-440.0,0.00021917,2]
[364690188,1749208246257,-420.60112534,0.00021917,2]
[364690189,1749208246267,-440.0,0.00021917,2]
[364690190,1749208246277,-440.0,0.00021917,2]
[364690191,1749208246287,-440.0,0.00021917,2]
[364690192,1749208246296,-440.0,0.00021917,2]
[364690193,1749208246306,-433.3707905,0.00021917,2]
[364690194,1749208246317,-440.0,0.00021917,2]
[364690196,1749208246326,-522.64537748,0.00021917,2]
[364690197,1749208246336,-432.60842759,0.00021917,2]
[364690198,1749208246345,-440.0,0.00021917,2]
[364690199,1749208246355,-440.0,0.00021917,2]
[364690200,1749208246364,-440.0,0.00021917,2]
[364690201,1749208246374,-442.72039857,0.00021917,2]
[364690202,1749208246383,-440.0,0.00021917,2]
[364690203,1749208246392,-440.0,0.00021917,2]
[364690204,1749208246401,-440.0,0.00021917,2]
[364690205,1749208246410,-440.0,0.00021917,2]
[364690206,1749208246422,-440.0,0.00021917,2]
[364690207,1749208246435,-440.0,0.00021917,2]
[364690208,1749208246444,-440.0,0.00021917,2]
[364690209,1749208246455,-440.0,0.00021917,2]
[364690210,1749208246465,-440.0,0.00021917,2]
[364690211,1749208246478,-440.0,0.00021917,2]
[364690212,1749208246488,-300.0,0.00021917,2]
[364690213,1749208246499,-440.0,0.00021917,2]
[364690214,1749208246509,-440.0,0.00021917,2]
[364690215,1749208246519,-440.0,0.00021917,2]
[364690216,1749208246528,-303.94558786,0.00021917,2]
[364690217,1749208246538,-440.0,0.00021917,2]
[364690218,1749208246548,-440.0,0.00021917,2]
[364690219,1749208246557,-440.0,0.00021917,2]
[364690220,1749208246566,-440.0,0.00021917,2]
[364690221,1749208246575,-432.17249315,0.00021917,2]
[364690222,1749208246584,-440.0,0.00021917,2]
[364690223,1749208246594,-440.0,0.00021917,2]
[364690224,1749208246605,-440.0,0.00021917,2]
[364690225,1749208246615,-437.09428049,0.00021917,2]
[364690226,1749208246625,-440.0,0.00021917,2]
[364690227,1749208246635,-440.0,0.00021917,2]
[364690228,1749208246645,-440.0,0.00021917,2]
[364690229,1749208246654,-681.11,0.00021917,2]
[364690230,1749208246664,-440.0,0.00021917,2]
[364690231,1749208246673,-440.0,0.00021917,2]
[364690232,1749208246682,-988.23,0.00021917,2]
[364690233,1749208246692,-440.0,0.00021917,2]
[364690234,1749208246701,-455.37653614,0.00021917,2]
[364690235,1749208246711,-500.0,0.00021917,2]
[364690236,1749208246720,-450.0,0.00021917,2]
[364690237,1749208246730,-500.0,0.00021917,2]
[364690238,1749208246739,-500.0,0.00021917,2]
[364690239,1749208246748,-500.0,0.00021917,2]
[364690240,1749208246758,-500.0,0.00021917,2]
[364690241,1749208246767,-500.0,0.00021917,2]
[364690242,1749208246777,-440.0,0.00021917,2]
[364690243,1749208246786,-387.66147122,0.00021917,2]
[364690244,1749208246795,-400.0,0.00021917,2]
[364690245,1749208246805,-440.0,0.00021917,2]
[364690246,1749208246815,-170.04375,0.00021917,2]
[364690247,1749208246826,-440.0,0.00021917,2]
[364690248,1749208246836,-170.04375,0.00021917,2]
[364690249,1749208246846,-170.04375,0.00021917,2]
[364690250,1749208246857,-170.04375,0.00021917,2]
[364690251,1749208246866,-440.0,0.00021917,2]
[364690252,1749208246876,-170.04375,0.00021917,2]
[364690253,1749208246886,-170.04375,0.00021917,2]
[364690254,1749208246895,-170.04375,0.00021917,2]
[364690255,1749208246905,-440.0,0.00021917,2]
[364690256,1749208246916,-440.0,0.00021917,2]
[364690257,1749208246926,-440.0,0.00021917,2]
[364690258,1749208246935,-170.04375,0.00021917,2]
[364690259,1749208246948,-440.0,0.00021917,2]
[364690260,1749208246959,-170.04375,0.00021917,2]
[364690261,1749208246968,-440.0,0.00021917,2]
[364690262,1749208246978,-440.0,0.00021917,2]
[364690263,1749208246990,-170.04375,0.00021917,2]
[364690264,1749208246999,-170.04375,0.00021917,2]
[364690265,1749208247009,-440.0,0.00021917,2]
[364690266,1749208247018,-170.04375,0.00021917,2]
[364690267,1749208247027,-440.0,0.00021917,2]
[364690268,1749208247036,-170.04375,0.00021917,2]
[364690269,1749208247047,-303.3151138,0.00021917,2]
[364690270,1749208247056,-170.04375,0.00021917,2]
[364690271,1749208247065,-3244.81,0.00021917,2]
[364690272,1749208247075,-2240.57,0.00021917,2]
[364690273,1749208247085,-1989.85,0.00021917,2]
[364690274,1749208247094,-500.0,0.00021917,2]
[364690275,1749208247104,-507.54581561,0.00021917,2]
[364690276,1749208247113,-440.0,0.00021917,2]
[364690277,1749208247124,-440.0,0.00021917,2]
[364690278,1749208247133,-1580.17,0.00021917,2]
[364690279,1749208247143,-943.15,0.00021917,2]
[364690280,1749208247152,-440.0,0.00021917,2]
[364690281,1749208247162,-6747.86,0.00021917,2]
[364690282,1749208247171,-440.0,0.00021917,2]
[364690283,1749208247180,-440.0,0.00021917,2]
[364690284,1749208247190,-404.83808626,0.00021917,2]
[364690285,1749208247199,-440.0,0.00021917,2]
[364690286,1749208247208,-440.0,0.00021917,2]
[364690287,1749208247288,-440.0,0.00021917,2]
[364690288,1749208247298,-440.0,0.00021917,2]
[364690289,1749208247307,-430.0,0.00021917,2]
[364690290,1749208247317,-151.0,0.00021917,2]
[364690291,1749208247326,-151.0,0.00021917,2]
[364690292,1749208247336,-151.0,0.00021917,2]
[364690293,1749208247345,-440.0,0.00021917,2]
[364690294,1749208247355,-440.0,0.00021917,2]
[364690295,1749208247364,-440.0,0.00021917,2]
[364690296,1749208247374,-440.0,0.00021917,2]
[364690297,1749208247383,-440.0,0.00021917,2]
[364690298,1749208247393,-4117.32,0.00021917,2]
[364690299,1749208247403,-440.0,0.00021917,2]
[364690300,1749208247412,-440.0,0.00021917,2]
[364690301,1749208247422,-440.0,0.00021917,2]
[364690302,1749208247431,-517.04,0.00021917,2]
[364690303,1749208247445,-440.0,0.00021917,2]
[364690304,1749208247454,-440.0,0.00021917,2]
[364690305,1749208247463,-440.0,0.00021917,2]
[364690306,1749208247473,-718.67,0.00021917,2]
[364690307,1749208247482,-310.0,0.00021917,2]
[364690308,1749208247491,-440.0,0.00021917,2]
[364690309,1749208247501,-440.0,0.00021917,2]
[364690310,1749208247510,-440.0,0.00021917,2]
[364690311,1749208247520,-440.0,0.00021917,2]
[364690312,1749208247531,-440.0,0.00021917,2]
[364690313,1749208247541,-430.0,0.00021917,2]
[364690314,1749208247550,-448.56,0.00021917,2]
[364690315,1749208247559,-440.0,0.00021917,2]
[364690316,1749208247569,-440.0,0.00021917,2]
[364690317,1749208247579,-363.75013179,0.00021917,2]
[364690318,1749208247589,-167.14493869,0.00021917,2]
[364690319,1749208247598,-440.0,0.00021917,2]
[364690320,1749208247608,-440.0,0.00021917,2]
[364690321,1749208247617,-430.46963713,0.00021917,2]
[364690322,1749208247628,-447.89111876,0.00021917,2]
[364690323,1749208247637,-542.03,0.00021917,2]
[364690324,1749208247646,-441.17309034,0.00021917,2]
[364690325,1749208247656,-440.0,0.00021917,2]
[364690326,1749208247666,-1229.28,0.00021917,2]
[364690327,1749208247675,-440.0,0.00021917,2]
[364690328,1749208247684,-440.0,0.00021917,2]
[364690329,1749208247693,-440.0,0.00021917,2]
[364690330,1749208247703,-440.0,0.00021917,2]
[364690331,1749208247712,-440.0,0.00021917,2]
[364690332,1749208247721,-440.0,0.00021917,2]
[364690333,1749208247731,-4617.81,0.00021917,2]
[364690334,1749208247740,-706.65,0.00021917,2]
[364690335,1749208247749,-599.5,0.00021917,2]
[364690336,1749208247759,-440.0,0.00021917,2]
[364690337,1749208247768,-356.19369479,0.00021917,2]
[364690338,1749208247778,-440.0,0.00021917,2]
[364690339,1749208247787,-440.0,0.00021917,2]
[364690340,1749208247796,-440.0,0.00021917,2]
[364690341,1749208247806,-440.0,0.00021917,2]
[364690342,1749208247815,-552.09,0.00021917,2]
[364690343,1749208247825,-440.0,0.00021917,2]
[364690344,1749208247835,-440.0,0.00021917,2]
[364690345,1749208247843,-512.84,0.00021917,2]
[364690346,1749208247853,-440.0,0.00021917,2]
[364690347,1749208247862,-430.0,0.00021917,2]
[364690348,1749208247872,-440.0,0.00021917,2]
[364690349,1749208247881,-440.0,0.00021917,2]
[364690350,1749208247890,-440.0,0.00021917,2]
[364690351,1749208247899,-440.0,0.00021917,2]
[364690352,1749208247908,-591.15,0.00021917,2]
[364690353,1749208247917,-440.0,0.00021917,2]
[364690354,1749208247926,-440.0,0.00021917,2]
[364690355,1749208247935,-440.0,0.00021917,2]
[364690356,1749208247946,-621.44476242,0.00021973,2]
[364690357,1749208247955,-500.0,0.00021973,2]
[364690358,1749208247965,-500.17720857,0.00021973,2]
[364690359,1749208247975,-500.0,0.00021973,2]
[364690360,1749208247984,-501.49722536,0.00021973,2]
[364690361,1749208247994,-501.9319538,0.00021973,2]
[364690362,1749208248004,-372.48068192,0.00021973,2]
[364690363,1749208248013,-501.03981374,0.00021973,2]
[364690364,1749208248023,-500.0,0.00021973,2]
[364690365,1749208248032,-500.0,0.00021973,2]
[364690366,1749208248041,-500.48194135,0.00021973,2]
[364690367,1749208248052,-500.0,0.00021973,2]
[364690368,1749208248062,-502.94341378,0.00021973,2]
[364690369,1749208248071,-500.0,0.00021973,2]
[364690370,1749208248081,-500.37805609,0.00021973,2]
[364690371,1749208248090,-501.18829422,0.00021973,2]
[364690372,1749208248100,-500.0,0.00021973,2]
[364690373,1749208248110,-500.0,0.00021973,2]
[364690374,1749208248119,-500.0,0.00021973,2]
[364690375,1749208248129,-500.0,0.00021973,2]
[364690376,1749208248138,-500.0,0.00021973,2]
[364690377,1749208248147,-500.0,0.00021973,2]
[364690378,1749208248156,-500.0,0.00021973,2]
[364690379,1749208248165,-500.0,0.00021973,2]
[364690380,1749208248174,-500.0,0.00021973,2]
[364690381,1749208248184,-500.0,0.00021973,2]
[364690382,1749208248193,-500.0,0.00021973,2]
[364690383,1749208248203,-500.0,0.00021973,2]
[364690384,1749208248212,-500.0,0.00021973,2]
[364690385,1749208248222,-500.0,0.00021973,2]
[364690386,1749208248231,-500.0,0.00021973,2]
[364690387,1749208248241,-501.94551524,0.00021973,2]
[364690388,1749208248251,-500.0,0.00021973,2]
[364690389,1749208248259,-549.40032849,0.00021973,2]
[364690390,1749208248268,-501.85638048,0.00021973,2]
[364690391,1749208248278,-501.91225782,0.00021973,2]
[364690392,1749208248289,-507.05499244,0.00021973,2]
[364690393,1749208248298,-500.34299314,0.00021973,2]
[364690394,1749208248308,-500.0,0.00021973,2]
[364690395,1749208248317,-500.0,0.00021973,2]
[364690396,1749208248326,-500.82320573,0.00021973,2]
[364690397,1749208248336,-500.0,0.00021973,2]
[364690398,1749208248345,-151.0,0.00021973,7]
[364690399,1749208248354,-170.04375,0.00021973,7]
[364690400,1749208248363,-170.043758,0.00021973,7]
[364690401,1749208248373,-151.0,0.00022,3]
[364690402,1749208248382,-22483.71,0.00022,2]
[364690403,1749208248392,-1236.34,0.00022,7]
[364690404,1749208248402,-5326.47285906,0.00022003,6]
[364690405,1749208248411,-587.0,0.00022008,2]
[364690406,1749208248420,-6821.44282732,0.00022091,2]
[364690407,1749208248432,-2807.12,0.000221,7]
[364690408,1749208248442,-1000.0,0.00022121,2]
[364690409,1749208248452,-1000.0,0.00022121,2]
[364690410,1749208248461,-1017.08068501,0.00022121,2]
[364690411,1749208248471,-500.0,0.00022173,2]
[364690412,1749208248481,-200.86059506,0.00022173,2]
[364690413,1749208248491,-500.0,0.00022173,2]
[364690414,1749208248500,-512.93391595,0.00022173,2]
[364690415,1749208248511,-503.03399779,0.00022173,2]
[364690416,1749208248521,-525.97332346,0.00022173,2]
[364690417,1749208248531,-500.0,0.00022173,2]
[364690418,1749208248540,-501.60077423,0.00022173,2]
[364690419,1749208248549,-501.24933724,0.00022173,2]
[364690420,1749208248559,-500.0,0.00022173,2]
[364690421,1749208248568,-500.0,0.00022173,2]
[364690422,1749208248577,-500.0,0.00022173,2]
[364690423,1749208248587,-501.03912607,0.00022173,2]
[364690424,1749208248597,-600.0,0.00022173,2]
[364690425,1749208248606,-187.26060975,0.00022191,2]
[364690426,1749208248616,-440.0,0.00022191,2]
[364690427,1749208248626,-470.39551672,0.00022191,2]
[364690428,1749208248635,-440.0,0.00022191,2]
[364690429,1749208248717,-440.0,0.00022191,2]
[364690430,1749208248727,-440.0,0.00022191,2]
[364690431,1749208248737,-440.0,0.00022191,2]
[364690432,1749208248746,-440.0,0.00022191,2]
[364690433,1749208248755,-440.0,0.00022191,2]
[364690434,1749208248764,-440.0,0.00022191,2]
[364690435,1749208248774,-440.0,0.00022191,2]
[364690436,1749208248784,-440.0,0.00022191,2]
[364690437,1749208248793,-324.50225217,0.00022191,2]
[364690438,1749208248802,-440.0,0.00022191,2]
[364690439,1749208248812,-440.0,0.00022191,2]
[364690440,1749208248821,-440.0,0.00022191,2]
[364690441,1749208248830,-418.5889332,0.00022191,2]
[364690442,1749208248840,-440.0,0.00022191,2]
[364690443,1749208248850,-315.14243178,0.00022191,2]
[364690444,1749208248859,-293.2253248,0.00022191,2]
[364690445,1749208248868,-440.0,0.00022191,2]
[364690446,1749208248878,-440.0,0.00022191,2]
[364690447,1749208248887,-440.0,0.00022191,2]
[364690448,1749208248896,-267.31125785,0.00022191,2]
[364690449,1749208248906,-440.0,0.00022191,2]
[364690450,1749208248915,-393.11436093,0.00022191,2]
[364690451,1749208248924,-440.0,0.00022191,2]
[364690452,1749208248934,-304.47709477,0.00022191,2]
[364690453,1749208248944,-391.05472376,0.00022191,2]
[364690454,1749208248953,-432.54619193,0.00022191,2]
[364690455,1749208248963,-305.02842406,0.00022191,2]
[364690456,1749208248972,-441.09342706,0.00022191,2]
[364690457,1749208248981,-440.0,0.00022191,2]
[364690458,1749208248990,-440.0,0.00022191,2]
[364690459,1749208248999,-440.0,0.00022191,2]
[364690460,1749208249009,-440.0,0.00022191,2]
[364690461,1749208249019,-440.0,0.00022191,2]
[364690462,1749208249028,-440.0,0.00022191,2]
[364690463,1749208249039,-440.0,0.00022191,2]
[364690464,1749208249050,-428.28146265,0.00022191,2]
[364690465,1749208249059,-440.0,0.00022191,2]
[364690466,1749208249069,-440.0,0.00022191,2]
[364690467,1749208249078,-370.11700427,0.00022191,2]
[364690468,1749208249087,-151.0,0.00022191,7]
[364690469,1749208249097,-151.0,0.00022191,7]
[364690470,1749208249106,-327.8100198,0.00022191,2]
[364690471,1749208249116,-440.0,0.00022191,2]
[364690472,1749208249126,-151.0,0.00022191,7]
[364690473,1749208249135,-440.0,0.00022191,2]
[364690474,1749208249145,-414.10730866,0.00022191,2]
[364690475,1749208249155,-440.0,0.00022191,2]
[364690476,1749208249164,-151.0,0.00022191,7]
[364690477,1749208249174,-288.693336,0.00022191,7]
[364690478,1749208249183,-440.0,0.00022191,2]
[364690479,1749208249193,-440.0,0.00022191,2]
[364690480,1749208249203,-440.0,0.00022191,2]
[364690481,1749208249213,-440.0,0.00022191,2]
[364690482,1749208249222,-431.0020938,0.00022191,2]
[364690483,1749208249232,-440.0,0.00022191,2]
[364690484,1749208249241,-440.0,0.00022191,2]
[364690485,1749208249251,-440.0,0.00022191,2]
[364690486,1749208249260,-440.0,0.00022191,2]
[364690487,1749208249270,-440.0,0.00022191,2]
[364690488,1749208249280,-440.0,0.00022191,2]
[364690489,1749208249290,-440.0,0.00022191,2]
[364690490,1749208249299,-381.37039718,0.00022191,2]
[364690491,1749208249308,-440.0,0.00022191,2]
[364690492,1749208249318,-440.0,0.00022191,2]
[364690493,1749208249327,-420.0,0.00022191,2]
[364690494,1749208249337,-440.0,0.00022191,2]
[364690495,1749208249347,-440.0,0.00022191,2]
[364690496,1749208249356,-500.0,0.00022191,2]
[364690497,1749208249365,-440.0,0.00022191,2]
[364690498,1749208249376,-422.09807437,0.00022191,2]
[364690499,1749208249385,-420.74760802,0.00022191,2]
[364690500,1749208249395,-440.0,0.00022191,2]
[364690501,1749208249404,-151.0,0.00022191,2]
[364690502,1749208249414,-440.0,0.00022191,2]
[364690503,1749208249423,-151.0,0.00022191,2]
[364690504,1749208249434,-283.308076,0.00022191,2]
[364690505,1749208249444,-440.0,0.00022191,2]
[364690506,1749208249453,-440.0,0.00022191,2]
[364690507,1749208249463,-440.0,0.00022191,2]
[364690508,1749208249472,-440.0,0.00022191,2]
[364690509,1749208249483,-440.0,0.00022191,2]
[364690510,1749208249493,-440.0,0.00022191,2]
[364690511,1749208249503,-217.01137369,0.00022191,2]
[364690512,1749208249516,-440.0,0.00022191,2]
[364690513,1749208249527,-440.0,0.00022191,2]
[364690514,1749208249537,-440.0,0.00022191,2]
[364690515,1749208249546,-440.0,0.00022191,2]
[364690516,1749208249555,-379.93495717,0.00022191,2]
[364690517,1749208249564,-440.0,0.00022191,2]
[364690518,1749208249573,-440.0,0.00022191,2]
[364690519,1749208249582,-440.0,0.00022191,2]
[364690520,1749208249592,-437.78189297,0.00022191,2]
[364690521,1749208249601,-440.0,0.00022191,2]
[364690522,1749208249611,-440.0,0.00022191,2]
[364690523,1749208249620,-440.0,0.00022191,2]
[364690524,1749208249630,-440.0,0.00022191,2]
[364690525,1749208249639,-440.0,0.00022191,2]
[364690526,1749208249649,-440.0,0.00022191,2]
[364690527,1749208249658,-440.0,0.00022191,2]
[364690528,1749208249667,-440.0,0.00022191,2]
[364690529,1749208249677,-440.0,0.00022191,2]
[364690530,1749208249686,-303.20136416,0.00022191,2]
[364690531,1749208249696,-440.0,0.00022191,2]
[364690532,1749208249706,-440.0,0.00022191,2]
[364690533,1749208249715,-440.0,0.00022191,2]
[364690534,1749208249725,-440.0,0.00022191,2]
[364690535,1749208249734,-440.0,0.00022191,2]
[364690536,1749208249743,-440.0,0.00022191,2]
[364690537,1749208249752,-412.41481194,0.00022191,2]
[364690538,1749208249761,-440.0,0.00022191,2]
[364690539,1749208249771,-224.55523875,0.00022191,2]
[364690540,1749208249780,-317.86402111,0.00022191,2]
[364690541,1749208249789,-440.0,0.00022191,2]
[364690542,1749208249798,-368.38001175,0.00022191,2]
[364690543,1749208249807,-440.0,0.00022191,2]
[364690544,1749208249816,-440.0,0.00022191,2]
[364690545,1749208249825,-440.0,0.00022191,2]
[364690546,1749208249834,-440.0,0.00022191,2]
[364690547,1749208249843,-440.0,0.00022191,2]
[364690548,1749208249852,-440.0,0.00022191,2]
[364690549,1749208249861,-569.70802043,0.00022191,2]
[364690550,1749208249870,-440.0,0.00022191,2]
[364690551,1749208249879,-440.0,0.00022191,2]
[364690552,1749208249888,-440.0,0.00022191,2]
[364690553,1749208249897,-440.0,0.00022191,2]
[364690554,1749208249907,-420.0,0.00022191,2]
[364690555,1749208249915,-362.36592079,0.00022191,2]
[364690556,1749208249924,-440.0,0.00022191,2]
[364690557,1749208249934,-440.0,0.00022191,2]
[364690558,1749208249943,-440.0,0.00022191,2]
[364690559,1749208250018,-420.51242425,0.00022191,2]
[364690560,1749208250028,-493.76271534,0.00022191,2]
[364690561,1749208250037,-420.0,0.00022191,2]
[364690562,1749208250047,-402.74064186,0.00022191,2]
[364690563,1749208250056,-440.0,0.00022191,2]
[364690564,1749208250065,-193.443453,0.00022191,7]
[364690565,1749208250074,-430.0,0.00022191,2]
[364690566,1749208250083,-440.0,0.00022191,2]
[364690567,1749208250092,-440.0,0.00022191,2]
[364690568,1749208250102,-440.0,0.00022191,2]
[364690569,1749208250111,-430.0,0.00022191,2]
[364690570,1749208250121,-433.66073691,0.00022191,2]
[364690571,1749208250131,-440.0,0.00022191,2]
[364690572,1749208250140,-397.08235146,0.00022191,2]
[364690573,1749208250150,-413.34221514,0.00022191,2]
[364690574,1749208250160,-440.0,0.00022191,2]
[364690575,1749208250168,-440.0,0.00022191,2]
[364690576,1749208250178,-440.0,0.00022191,2]
[364690577,1749208250187,-500.0,0.00022191,2]
[364690578,1749208250197,-401.78527147,0.00022191,2]
[364690579,1749208250206,-353.68248777,0.00022191,2]